bitfinex-derivatives/quotes_SOLF0:USTF0_20250125
["timestamp","ask_amount","ask_price","bid_price","bid_amount"]
[1737801692643,0.02593896,247.69,247.64,0.02893641]
[1737801695343,0.02593896,247.69,247.65,4.0385]
[1737801695539,0.02593896,247.69,247.64,9.3762629]
[1737801695941,0.02593896,247.69,247.66,4.0382]
[1737801696847,0.02593896,247.69,247.67,4.0382]
[1737801697540,0.02593896,247.69,247.68,9.34732649]
[1737801697748,4.036,247.81,247.74,4.0369]
[1737801697941,4.036,247.81,247.68,9.34732649]
[1737801698543,4.0355,247.84,247.72,9.34732649]
[1737801698855,0.03093953,247.8,247.76,0.02909537]
[1737801699447,0.03093953,247.8,247.78,4.0363]
[1737801699841,2.6708,247.89,247.76,0.02909537]
[1737801700042,4.0349,247.88,247.76,0.02909537]
[1737801700245,2.7053,247.95,247.75,15.00085308]
[1737801700944,0.0290549,247.87,247.83,0.02989384]
[1737801701148,4.0639549,247.87,247.83,0.02989384]
[1737801701751,0.0290549,247.87,247.83,0.02989384]
[1737801701948,0.0290549,247.87,247.84,4.0354]
[1737801702244,0.0290549,247.87,247.83,0.02989384]
[1737801702551,0.0290549,247.87,247.84,4.0354]
[1737801703244,4.0353,247.85,247.83,0.02989384]
[1737801703446,0.0290549,247.87,247.83,0.02989384]
[1737801704148,4.0351,247.86,247.83,0.02989384]
[1737801704650,0.0290549,247.87,247.83,0.02989384]
[1737801705150,0.0290549,247.87,247.83,4.06539384]
[1737801705345,0.0290549,247.87,247.83,0.02989384]
[1737801706449,4.0640549,247.87,247.83,0.02989384]
[1737801706849,0.0290549,247.87,247.83,0.02989384]
[1737801707051,0.0290549,247.87,247.86,4.0351]
[1737801707252,0.0290549,247.87,247.83,0.02989384]
[1737801709054,4.0351,247.86,247.83,0.02989384]
[1737801710554,4.0353,247.85,247.83,0.02989384]
[1737801710755,0.0290549,247.87,247.83,0.02989384]
[1737801711553,4.0354,247.84,247.83,0.02989384]
[1737801715557,4.0352,247.86,247.83,0.02989384]
[1737801716150,0.0290549,247.87,247.83,0.02989384]
[1737801716356,2.7053,247.95,247.83,0.02989384]
[1737801716654,1.3202,247.99,247.85,15.00085308]
[1737801717050,4.0336,247.96,247.85,15.00085308]
[1737801717259,1.3202,247.99,247.85,15.00085308]
[1737801717657,0.0297207,247.94,247.9,0.03024322]
[1737801717857,2.6746,248.05,247.93,15.00085308]
[1737801718358,2.6746,248.05,247.87,2.7]
[1737801718654,4.0336,247.96,247.89,4.0345]
[1737801718963,2.6746,248.05,247.87,2.7]
[1737801719156,0.02644833,247.95,247.9,0.0295395]
[1737801719455,4.0337,247.95,247.9,0.02871596]
[1737801719657,4.06101315,247.95,247.9,0.02871596]
[1737801720262,0.02731315,247.95,247.9,0.02871596]
[1737801720857,4.06101315,247.95,247.9,0.02871596]
[1737801721058,0.02731315,247.95,247.9,0.02871596]
[1737801722258,0.02731315,247.95,247.9,4.06311596]
[1737801722663,0.02731315,247.95,247.9,9.39746892]
[1737801723163,0.02731315,247.95,247.9,0.02871596]
[1737801723358,4.0338,247.94,247.9,0.02871596]
[1737801724366,0.02731315,247.95,247.9,0.02871596]
[1737801724864,0.02731315,247.95,247.92,4.034]
[1737801725667,0.02731315,247.95,247.9,0.02871596]
[1737801726867,4.034,247.93,247.9,0.02871596]
[1737801727169,0.02731315,247.95,247.9,0.02871596]
[1737801728069,0.02731315,247.95,247.91,4.0343]
[1737801728665,0.02731315,247.95,247.9,0.02871596]
[1737801729070,4.06101315,247.95,247.9,0.02871596]
[1737801732271,4.06101315,247.95,247.9,4.06311596]
[1737801734467,0.02731315,247.95,247.9,0.02871596]
[1737801736175,9.36875296,247.94,247.75,12.00835296]
[1737801736378,9.36875296,247.9,247.75,12.00835296]
[1737801736968,4.0352,247.86,247.79,4.0362]
[1737801737170,0.02835691,247.85,247.8,0.02942003]
[1737801737879,4.0354,247.84,247.8,0.02942003]
[1737801738575,0.02835691,247.85,247.8,0.02942003]
[1737801739878,0.02835691,247.85,247.82,4.0357]
[1737801740073,0.02835691,247.85,247.8,0.02942003]
[1737801740781,0.02835691,247.85,247.81,4.0359]
[1737801741081,0.02835691,247.85,247.8,0.02942003]
[1737801741481,0.02835691,247.85,247.82,4.0357]
[1737801742483,0.02835691,247.85,247.81,4.0359]
[1737801744082,0.02835691,247.85,247.8,0.02942003]
[1737801746787,0.02835691,247.85,247.83,4.0355]
[1737801749599,0.02835691,247.85,247.8,0.02942003]
[1737801749798,0.02835691,247.85,247.84,4.0354]
[1737801750597,0.02835691,247.85,247.82,4.0357]
[1737801750798,0.02835691,247.85,247.8,0.02942003]
[1737801751598,4.0355,247.84,247.8,4.06542003]
[1737801751800,4.0355,247.84,247.8,0.02942003]
[1737801752200,0.02835691,247.85,247.8,0.02942003]
[1737801752402,4.0359,247.81,247.8,0.02942003]
[1737801753900,9.36875296,247.82,247.67,5.78860286]
[1737801755103,0.02734791,247.77,247.72,4.06823059]
[1737801755301,0.02734791,247.77,247.72,0.03093059]
[1737801757804,4.0368,247.76,247.72,0.03093059]
[1737801760207,0.02734791,247.77,247.72,0.03093059]
[1737801761112,4.037,247.75,247.72,0.03093059]
[1737801762012,0.02734791,247.77,247.72,0.03093059]
[1737801762410,0.02734791,247.77,247.76,4.0367]
[1737801762911,0.02734791,247.77,247.72,0.03093059]
[1737801763107,9.36875296,247.74,247.63,4.0387]
[1737801764216,0.02819765,247.71,247.66,0.02835432]
[1737801765015,4.0379,247.69,247.66,0.02835432]
[1737801766415,0.02819765,247.71,247.68,4.038]
[1737801766618,0.02819765,247.71,247.66,0.02835432]
[1737801766911,0.02819765,247.71,247.68,4.038]
[1737801769322,0.02819765,247.71,247.66,0.02835432]
[1737801769517,0.02819765,247.71,247.7,4.0377]
[1737801774216,9.36875296,247.83,247.67,9.36875296]
[1737801774421,4.0358,247.82,247.76,4.0367]
[1737801774822,4.0358,247.82,247.67,9.36875296]
[1737801775123,4.0356,247.83,247.68,0.73904493]
[1737801775323,4.0356,247.83,247.71,9.36875296]
[1737801775516,0.03064625,247.78,247.73,0.02566462]
[1737801775919,0.03064625,247.78,247.77,4.0365]
[1737801779929,0.03064625,247.78,247.73,0.02566462]
[1737801780126,0.03064625,247.78,247.75,4.0367]
[1737801780730,0.03064625,247.78,247.73,0.02566462]
[1737801782129,4.06704625,247.78,247.73,0.02566462]
[1737801783330,4.0366,247.77,247.73,0.02566462]
[1737801785434,4.037,247.74,247.73,0.02566462]
[1737801786438,0.03064625,247.78,247.73,0.02566462]
[1737801786439,4.037,247.75,247.73,0.02566462]
[1737801788135,4.037,247.74,247.73,0.02566462]
[1737801791929,4.0379,247.69,247.66,6.00642386]
[1737801792131,6.00642386,247.72,247.63,6.00642386]
[1737801792537,4.038,247.68,247.63,6.00642386]
[1737801792838,6.00642386,247.72,247.63,6.00642386]
[1737801793136,4.0387,247.64,247.63,6.03563848]
[1737801793329,4.0387,247.64,247.63,0.02921462]
[1737801800147,0.02915489,247.68,247.55,9.3926766]
[1737801800347,1.2711,247.71,247.55,9.3926766]
[1737801800348,4.0393,247.61,247.55,9.3926766]
[1737801800646,1.3791,247.67,247.55,9.3926766]
[1737801801347,0.02957739,247.63,247.59,0.02751871]
[1737801802946,4.06837739,247.63,247.59,0.02751871]
[1737801806446,0.02957739,247.63,247.59,0.02751871]
[1737801806646,4.039,247.62,247.59,0.02751871]
[1737801806842,0.02957739,247.63,247.59,0.02751871]
[1737801809649,4.06847739,247.63,247.59,0.02751871]
[1737801810448,0.02957739,247.63,247.59,4.06681871]
[1737801810751,0.02957739,247.63,247.59,0.02751871]
[1737801811153,4.06837739,247.63,247.59,0.02751871]
[1737801812250,0.02957739,247.63,247.59,0.02751871]
[1737801814254,4.06837739,247.63,247.59,0.02751871]
[1737801814753,0.02957739,247.63,247.59,0.02751871]
[1737801814959,0.02957739,247.63,247.6,4.0393]
[1737801815760,0.02957739,247.63,247.62,6.00974556]
[1737801817064,0.02957739,247.63,247.62,10.04874556]
[1737801817964,0.02957739,247.63,247.62,6.00974556]
[1737801822672,0.02957739,247.63,247.6,6.00974556]
[1737801822969,0.02957739,247.63,247.59,0.02751871]
[1737801823670,4.0393,247.61,247.59,0.02751871]
[1737801823971,0.02957739,247.63,247.59,0.02751871]
[1737801824770,4.039,247.62,247.59,0.02751871]
[1737801826370,4.06837739,247.63,247.59,0.02751871]
[1737801827469,4.039,247.62,247.59,0.02751871]
[1737801830071,0.02957739,247.63,247.59,0.02751871]
[1737801830371,0.02957739,247.63,247.59,4.06691871]
[1737801830670,0.02957739,247.63,247.59,0.02751871]
[1737801831370,4.06847739,247.63,247.59,0.02751871]
[1737801835574,4.039,247.62,247.59,0.02751871]
[1737801837173,4.06837739,247.63,247.59,0.02751871]
[1737801837776,4.039,247.62,247.59,0.02751871]
[1737801839874,0.02957739,247.63,247.59,0.02751871]
[1737801840177,4.0392,247.61,247.59,0.02751871]
[1737801842176,0.02957739,247.63,247.59,0.02751871]
[1737801843379,4.0392,247.61,247.59,0.02751871]
[1737801844182,0.02957739,247.63,247.59,0.02751871]
[1737801844379,4.06857739,247.63,247.59,0.02751871]
[1737801847582,0.02957739,247.63,247.59,4.06701871]
[1737801849091,4.06847739,247.63,247.59,4.06701871]
[1737801853291,4.0391,247.62,247.59,0.02751871]
[1737801867200,0.02957739,247.63,247.59,0.02751871]
[1737801867401,4.06847739,247.63,247.59,0.02751871]
[1737801868703,4.06847739,247.63,247.59,4.06701871]
[1737801869296,4.039,247.62,247.59,0.02751871]
[1737801869502,0.02957739,247.63,247.59,0.02751871]
[1737801870001,4.0393,247.61,247.59,0.02751871]
[1737801881612,0.02957739,247.63,247.59,0.02751871]
[1737801881811,0.02957739,247.63,247.61,6.00974556]
[1737801882918,0.02957739,247.63,247.59,6.03726427]
[1737801883418,4.0392,247.61,247.59,6.03726427]
[1737801886218,0.02957739,247.63,247.59,0.02751871]
[1737801886414,4.0393,247.6,247.59,0.02751871]
[1737801886716,6.00974556,247.61,247.53,6.00974556]
[1737801887715,4.04,247.56,247.55,0.03024918]
[1737801890122,6.00974556,247.57,247.49,6.00974556]
[1737801890123,4.041,247.5,247.49,6.00974556]
[1737801890319,6.00974556,247.52,247.45,41.10774022]
[1737801891223,6.00974556,247.54,247.47,6.00974556]
[1737801891414,0.03030947,247.51,247.46,0.03080146]
[1737801893123,4.0413,247.48,247.46,0.03080146]
[1737801895522,4.0414,247.47,247.46,0.03080146]
[1737801897121,4.0413,247.49,247.41,6.00974556]
[1737801897326,6.00974556,247.51,247.41,6.00974556]
[1737801897526,6.00974556,247.49,247.41,6.00974556]
[1737801897833,4.0413,247.48,247.43,6.00974556]
[1737801898030,6.00974556,247.53,247.43,6.00974556]
[1737801898430,0.02842059,247.5,247.46,0.02733944]
[1737801899130,4.0415,247.47,247.46,0.02733944]
[1737801902530,4.0425,247.41,247.35,6.00974556]
[1737801902928,6.00974556,247.44,247.35,6.00974556]
[1737801903123,4.0426,247.4,247.35,6.00974556]
[1737801903430,6.00974556,247.44,247.35,6.00974556]
[1737801903632,4.0428,247.39,247.35,0.03043636]
[1737801904027,0.02584853,247.4,247.35,0.03043636]
[1737801905537,6.00974556,247.36,247.35,0.03043636]
[1737801905732,6.00974556,247.36,247.25,6.00974556]
[1737801905936,6.00974556,247.31,247.23,6.00974556]
[1737801906137,6.00974556,247.29,247.21,6.00974556]
[1737801906333,4.0442,247.31,247.25,6.00974556]
[1737801906933,0.03093044,247.3,247.26,0.03110081]
[1737801907436,6.00974556,247.29,247.26,0.03110081]
[1737801907636,0.03093044,247.3,247.17,174.56579846]
[1737801907637,6.00974556,247.27,247.17,174.56579846]
[1737801907936,6.00974556,247.25,247.17,174.56579846]
[1737801908133,6.00974556,247.25,247.17,6.00974556]
[1737801908733,0.02897121,247.23,247.19,6.0393553]
[1737801908935,6.00974556,247.3,247.21,6.00974556]
[1737801909137,0.02934293,247.23,247.21,6.00974556]
[1737801909339,4.0455,247.23,247.16,6.00974556]
[1737801909539,4.0455,247.23,247.2,0.0258932]
[1737801909938,6.03859956,247.24,247.2,0.0258932]
[1737801914747,0.028854,247.24,247.2,0.0258932]
[1737801916157,0.028854,247.24,247.21,4.0457]
[1737801917141,0.028854,247.24,247.23,4.0454]
[1737801917541,6.00974556,247.32,247.22,6.00974556]
[1737801917747,6.00974556,247.32,247.25,6.00974556]
[1737801918254,6.00974556,247.32,247.23,6.00974556]
[1737801918750,0.02963392,247.3,247.25,0.03086064]
[1737801919047,0.02963392,247.3,247.25,6.0406062]
[1737801919652,0.02963392,247.3,247.26,4.0448]
[1737801919950,0.02963392,247.3,247.25,6.0406062]
[1737801920953,0.02963392,247.3,247.26,4.0448]
[1737801921353,0.02963392,247.3,247.25,6.0406062]
[1737801922251,0.02963392,247.3,247.27,6.00974556]
[1737801922952,0.02963392,247.3,247.25,6.0406062]
[1737801926061,4.0446,247.28,247.25,6.0406062]
[1737801927161,4.07393392,247.3,247.25,6.0406062]
[1737801927363,0.02963392,247.3,247.25,6.0406062]
[1737801928061,4.0444,247.29,247.25,6.0406062]
[1737801928552,4.0449,247.26,247.25,0.03086064]
[1737801931164,6.00974556,247.26,247.19,6.00974556]
[1737801931558,6.00974556,247.26,247.17,6.00974556]
[1737801932055,4.0453,247.24,247.17,6.00974556]
[1737801932262,6.00974556,247.26,247.17,6.00974556]
[1737801932464,0.02923907,247.23,247.18,0.02709934]
[1737801932764,4.07463907,247.23,247.18,0.02709934]
[1737801933064,0.02923907,247.23,247.18,0.02709934]
[1737801933963,4.07463907,247.23,247.18,4.07319934]
[1737801934961,0.02923907,247.23,247.18,0.02709934]
[1737801935266,4.0457,247.21,247.18,0.02709934]
[1737801936361,0.02923907,247.23,247.18,0.02709934]
[1737801936767,6.00974556,247.22,247.18,0.02709934]
[1737801937269,0.02923907,247.23,247.18,0.02709934]
[1737801938064,4.0459,247.21,247.18,0.02709934]
[1737801939469,0.02923907,247.23,247.18,0.02709934]
[1737801939671,4.07473907,247.23,247.18,0.02709934]
[1737801940568,0.02923907,247.23,247.19,6.00974556]
[1737801941663,0.02923907,247.23,247.21,4.0457]
[1737801942265,0.02923907,247.23,247.18,0.02709934]
[1737801942470,4.0459,247.2,247.18,0.02709934]
[1737801946872,0.02923907,247.23,247.18,0.02709934]
[1737801947571,0.02923907,247.23,247.2,4.0457]
[1737801947768,0.02923907,247.23,247.19,6.00974556]
[1737801948072,0.02923907,247.23,247.21,6.00974556]
[1737801949071,0.02923907,247.23,247.22,4.0455]
[1737801949871,6.00974556,247.32,247.21,6.00974556]
[1737801950075,6.00974556,247.32,247.12,1.2903]
[1737801950076,6.00974556,247.32,247.26,4.0449]
[1737801950277,7.35734556,247.34,247.26,4.0449]
[1737801950973,4.0439,247.33,247.27,4.0446]
[1737801951178,0.02658438,247.32,247.28,0.02586658]
[1737801952175,6.03632994,247.32,247.28,0.02586658]
[1737801952567,6.00974556,247.3,247.28,0.02586658]
[1737801952969,4.0444,247.29,247.28,0.02586658]
[1737801959978,4.0459,247.2,247.16,6.00974556]
[1737801961078,4.0753336,247.2,247.16,10.05624556]
[1737801961274,4.0753336,247.2,247.16,6.0405131]
[1737801961479,4.046,247.19,247.16,0.03076754]
[1737801961879,0.0294336,247.2,247.16,0.03076754]
[1737801962379,0.0294336,247.2,247.16,10.0870131]
[1737801963279,0.0294336,247.2,247.18,4.0461]
[1737801964981,0.0294336,247.2,247.16,6.0405131]
[1737801965987,0.0294336,247.2,247.17,4.0462]
[1737801966485,0.0294336,247.2,247.16,10.0869131]
[1737801966687,0.0294336,247.2,247.16,6.0405131]
[1737801967387,0.0294336,247.2,247.18,4.0461]
[1737801968491,0.0294336,247.2,247.19,10.05574556]
[1737801969486,4.0444,247.3,247.24,4.0451]
[1737801969787,4.0444,247.29,247.24,4.0451]
[1737801970581,4.07054249,247.29,247.24,4.07066419]
[1737801970785,4.07054249,247.29,247.24,0.02556419]
[1737801971089,0.02614249,247.29,247.25,6.00974556]
[1737801971689,0.02614249,247.29,247.27,4.0447]
[1737801972093,0.02614249,247.29,247.27,6.00974556]
[1737801972294,0.02614249,247.29,247.28,4.0446]
[1737801972489,0.02614249,247.29,247.27,6.00974556]
[1737801973089,0.02614249,247.29,247.25,10.05464556]
[1737801973794,0.02614249,247.29,247.25,6.00974556]
[1737801973985,0.02614249,247.29,247.24,0.02556419]
[1737801974187,6.00974556,247.28,247.24,0.02556419]
[1737801974386,4.045,247.25,247.24,0.02556419]
[1737801985603,6.00974556,247.28,247.24,0.02556419]
[1737801985604,0.02614249,247.29,247.24,0.02556419]
[1737801986404,0.02614249,247.29,247.24,10.08050975]
[1737801987106,0.02614249,247.29,247.24,0.02556419]
[1737801987306,6.03588805,247.29,247.24,0.02556419]
[1737801987502,4.045,247.25,247.24,0.02556419]
[1737801992003,4.0448,247.27,247.24,0.02556419]
[1737801992309,0.02614249,247.29,247.24,6.03530975]
[1737801993210,0.02614249,247.29,247.25,4.045]
[1737801993809,0.02614249,247.29,247.27,4.0446]
[1737801994508,0.02614249,247.29,247.26,6.00974556]
[1737801994709,0.02614249,247.29,247.28,10.05434556]
[1737801996211,0.02614249,247.29,247.28,6.00974556]
[1737801999816,0.02614249,247.29,247.26,6.00974556]
[1737802000316,0.02614249,247.29,247.24,6.03530975]
[1737802000617,4.0448,247.27,247.24,6.03530975]
[1737802001118,0.02614249,247.29,247.24,6.03530975]
[1737802001312,4.0449,247.27,247.24,6.03530975]
[1737802002926,4.0449,247.26,247.24,6.03530975]
[1737802004726,0.02614249,247.29,247.24,6.03530975]
[1737802004927,0.02614249,247.29,247.26,6.00974556]
[1737802006228,0.02614249,247.29,247.28,6.00974556]
[1737802007130,4.07054249,247.29,247.28,6.00974556]
[1737802009533,0.02614249,247.29,247.28,6.00974556]
[1737802010230,41.44809574,247.4,247.28,6.00974556]
[1737802010433,2.6925,247.43,247.36,6.00974556]
[1737802010729,4.0429,247.39,247.36,6.00974556]
[1737802010936,8.70224556,247.43,247.34,6.00974556]
[1737802011330,8.70224556,247.43,247.21,4.0822]
[1737802011331,8.70224556,247.43,247.36,6.00974556]
[1737802011634,0.02977619,247.41,247.36,6.03528269]
[1737802012031,0.02977619,247.41,247.38,6.00974556]
[1737802013336,8.72324556,247.49,247.4,6.00974556]
[1737802013537,2.7135,247.49,247.42,6.00974556]
[1737802013835,4.0414,247.48,247.44,6.00974556]
[1737802014337,4.041,247.51,247.46,6.00974556]
[1737802014534,1.3679,247.56,247.48,6.00974556]
[1737802014734,1.3679,247.56,247.5,6.00974556]
[1737802014934,0.02654961,247.51,247.5,6.00974556]
[1737802016842,0.02654961,247.51,247.48,6.03626332]
[1737802017140,6.00974556,247.65,247.5,6.00974556]
[1737802017437,6.00974556,247.65,247.56,6.00974556]
[1737802018039,6.00974556,247.59,247.52,6.00974556]
[1737802018335,4.0405,247.53,247.48,6.00974556]
[1737802018535,6.00974556,247.57,247.48,6.00974556]
[1737802019437,0.02603387,247.55,247.5,0.03085723]
[1737802020140,4.0407,247.52,247.5,0.03085723]
[1737802022440,4.0407,247.52,247.5,6.04060279]
[1737802023242,0.02603387,247.55,247.5,6.04060279]
[1737802023540,0.02603387,247.55,247.52,6.00974556]
[1737802023742,0.02603387,247.55,247.54,6.00974556]
[1737802027941,4.06613387,247.55,247.54,6.00974556]
[1737802028445,0.02603387,247.55,247.54,6.00974556]
[1737802029140,0.02603387,247.55,247.54,10.05004556]
[1737802029345,2.6932,247.66,247.54,6.00974556]
[1737802029541,2.6932,247.66,247.58,6.00974556]
[1737802030250,4.0395,247.59,247.58,6.00974556]
[1737802030644,0.02735221,247.64,247.56,6.03596294]
[1737802031048,0.02954029,247.62,247.56,6.03596294]
[1737802031949,4.0393,247.61,247.56,6.03596294]
[1737802032145,0.02954029,247.62,247.56,6.03596294]
[1737802032649,4.0393,247.61,247.56,6.03596294]
[1737802032949,0.02954029,247.62,247.56,6.03596294]
[1737802033148,0.02954029,247.62,247.58,6.00974556]
[1737802033947,4.0394,247.6,247.58,6.00974556]
[1737802034150,0.02954029,247.62,247.58,6.00974556]
[1737802035154,4.0393,247.6,247.58,6.00974556]
[1737802036549,4.06864029,247.62,247.58,6.00974556]
[1737802036749,4.06864029,247.62,247.61,6.00974556]
[1737802037552,4.0393,247.6,247.59,6.00974556]
[1737802038548,0.02954029,247.62,247.57,6.00974556]
[1737802038746,4.0397,247.58,247.57,6.00974556]
[1737802039352,4.0395,247.59,247.57,6.00974556]
[1737802039851,0.02954029,247.62,247.57,6.00974556]
[1737802040055,4.0395,247.59,247.56,0.02621738]
[1737802040950,0.02954029,247.62,247.56,0.02621738]
[1737802041250,4.0394,247.6,247.59,6.00974556]
[1737802050749,0.02954029,247.62,247.59,6.00974556]
[1737802050953,0.02954029,247.62,247.61,6.00974556]
[1737802053550,0.02954029,247.62,247.61,10.04894556]
[1737802053949,2.7282,247.72,247.61,6.00974556]
[1737802054148,2.7282,247.72,247.67,6.00974556]
[1737802054360,6.00974556,247.69,247.61,6.00974556]
[1737802054959,6.00974556,247.71,247.63,6.00974556]
[1737802055155,0.02705114,247.67,247.63,6.00974556]
[1737802055457,4.0387,247.64,247.63,6.00974556]
[1737802055658,4.0387,247.64,247.63,6.03797776]
[1737802057554,4.0386,247.65,247.63,6.03797776]
[1737802057757,4.0386,247.65,247.64,6.00974556]
[1737802058461,4.06535114,247.67,247.64,6.00974556]
[1737802058662,4.06535114,247.67,247.66,6.00974556]
[1737802059961,4.0387,247.65,247.64,6.00974556]
[1737802061262,0.02705114,247.67,247.64,6.00974556]
[1737802061461,0.02705114,247.67,247.66,6.00974556]
[1737802063064,4.06525114,247.67,247.66,6.00974556]
[1737802063269,0.02705114,247.67,247.66,6.00974556]
[1737802065170,0.02705114,247.67,247.66,10.04804556]
[1737802065874,0.02705114,247.67,247.66,6.00974556]
[1737802067177,4.06525114,247.67,247.66,6.00974556]
[1737802070079,0.02705114,247.67,247.66,6.00974556]
[1737802072984,4.06525114,247.67,247.66,6.00974556]
[1737802073378,0.02705114,247.67,247.66,6.00974556]
[1737802075589,0.02705114,247.67,247.66,10.04804556]
[1737802076182,6.00974556,247.81,247.68,4.038]
[1737802076382,6.00974556,247.81,247.72,6.00974556]
[1737802076583,4.0367,247.77,247.72,6.00974556]
[1737802076886,6.00974556,247.81,247.72,6.00974556]
[1737802077391,4.0371,247.74,247.73,0.03097648]
[1737802083888,0.02886844,247.77,247.73,0.03097648]
[1737802084100,0.02886844,247.77,247.75,6.00974556]
[1737802084490,0.02886844,247.77,247.76,4.0367]
[1737802084691,1.3818,247.87,247.75,6.00974556]
[1737802084887,1.3818,247.87,247.81,6.00974556]
[1737802085188,6.00974556,247.93,247.85,6.00974556]
[1737802085491,2.7732,247.94,247.87,6.00974556]
[1737802085687,2.7732,247.94,247.85,6.00974556]
[1737802085893,0.02647679,247.93,247.88,0.02625744]
[1737802086189,4.0347,247.89,247.87,6.00974556]
[1737802086495,6.03876749,247.93,247.88,0.02814823]
[1737802086797,4.0351,247.86,247.85,6.00974556]
[1737802087000,0.02817819,247.93,247.85,6.00974556]
[1737802087296,4.0341,247.92,247.87,6.00974556]
[1737802087495,0.02711583,247.91,247.89,6.00974556]
[1737802088487,0.02711583,247.91,247.87,6.03988961]
[1737802088688,4.0348,247.88,247.87,0.03014405]
[1737802088995,6.03686139,247.91,247.81,6.00974556]
[1737802089394,6.00974556,247.91,247.83,6.00974556]
[1737802089785,4.0354,247.84,247.83,6.00974556]
[1737802090390,0.03065634,247.89,247.83,6.00974556]
[1737802090595,0.03065634,247.89,247.88,6.00974556]
[1737802092094,4.06535634,247.89,247.88,6.00974556]
[1737802092501,0.03065634,247.89,247.88,6.00974556]
[1737802096094,4.0338,247.94,247.88,6.00974556]
[1737802096290,4.0338,247.94,247.93,6.00974556]
[1737802096498,4.0333,247.97,247.93,6.00974556]
[1737802096792,1.3738,248.0,247.95,6.00974556]
[1737802097297,0.02656846,248.0,247.97,6.00974556]
[1737802097496,0.02656846,248.0,247.99,6.00974556]
[1737802097896,0.02656846,248.0,247.97,6.00974556]
[1737802098991,4.0331,247.98,247.97,6.00974556]
[1737802099889,0.02656846,248.0,247.97,6.00974556]
[1737802100091,4.05956846,248.0,247.99,6.00974556]
[1737802100901,0.02656846,248.0,247.99,6.00974556]
[1737802102199,2.7513,248.1,247.99,6.00974556]
[1737802102396,2.7513,248.1,248.08,6.00974556]
[1737802102798,4.0313,248.09,248.08,6.00974556]
[1737802103198,1.3684,248.1,248.06,6.00974556]
[1737802103502,4.0318,248.07,248.06,6.04022548]
[1737802105310,1.42178825,248.11,248.06,6.04022548]
[1737802105610,0.02828825,248.11,248.09,6.00974556]
[1737802107307,4.05938825,248.11,248.09,6.00974556]
[1737802107705,0.02828825,248.11,248.09,6.00974556]
[1737802108611,0.02828825,248.11,248.07,6.00974556]
[1737802109006,4.0315,248.08,248.07,6.00974556]
[1737802111312,0.02828825,248.11,248.07,6.00974556]
[1737802111512,0.02828825,248.11,248.1,6.00974556]
[1737802112310,4.0304,248.15,248.1,6.00974556]
[1737802112508,1.3839,248.21,248.14,6.00974556]
[1737802112712,1.3839,248.21,248.17,6.00974556]
[1737802113505,1.41145542,248.21,248.17,6.0361175]
[1737802113712,1.41145542,248.21,248.17,0.02637194]
[1737802114310,4.0299,248.18,248.17,0.02637194]
[1737802115905,4.0297,248.19,248.17,0.02637194]
[1737802116415,0.02755542,248.21,248.17,0.02637194]
[1737802116808,9.3512646,248.37,248.18,9.3512646]
[1737802117012,2.7448,248.39,248.24,9.3512646]
[1737802117215,4.0278,248.31,248.27,9.3512646]
[1737802117617,2.7448,248.39,248.24,9.3512646]
[1737802118215,0.02892941,248.34,248.29,0.02699486]
[1737802118410,4.0279,248.3,248.29,0.02699486]
[1737802118919,0.02892941,248.34,248.21,9.3512646]
[1737802119216,9.3512646,248.34,248.18,9.3512646]
[1737802119718,4.0294,248.22,248.18,9.3512646]
[1737802119914,9.3512646,248.34,248.18,9.3512646]
[1737802120213,193.0,248.38,248.21,9.3512646]
[1737802120419,0.02773402,248.28,248.24,9.3512646]
[1737802120618,193.0,248.38,248.27,0.02579778]
[1737802120818,0.02815222,248.28,248.27,0.02579778]
[1737802121019,12.0960646,248.39,248.27,0.02579778]
[1737802121219,0.03075648,248.3,248.27,0.02579778]
[1737802121518,12.0960646,248.39,248.27,0.02579778]
[1737802121717,0.02571269,248.31,248.27,0.02579778]
[1737802122421,0.02571269,248.31,248.28,9.3512646]
[1737802123121,4.05351269,248.31,248.28,9.3512646]
[1737802123615,0.02571269,248.31,248.28,9.3512646]
[1737802124618,0.02571269,248.31,248.27,0.02579778]
[1737802126121,4.0282,248.29,248.27,0.02579778]
[1737802129126,4.0283,248.28,248.27,0.02579778]
[1737802137632,4.0283,248.28,248.27,6.00530825]
[1737802138740,4.0283,248.28,248.27,0.02579778]
[1737802138938,5.97951047,248.29,248.21,5.97951047]
[1737802139139,5.97951047,248.27,248.19,5.97951047]
[1737802139646,4.0288,248.25,248.19,5.97951047]
[1737802139937,2.6466,248.3,248.21,5.97951047]
[1737802140139,0.02733828,248.24,248.21,5.97951047]
[1737802140540,4.0294,248.22,248.21,5.97951047]
[1737802140839,5.97951047,248.23,248.15,5.97951047]
[1737802141641,4.0304,248.15,248.12,9.35178778]
[1737802142035,0.03075231,248.16,248.11,0.0274739]
[1737802142237,4.0309,248.12,248.11,7.39e-05]